fUST/lending_fUST_20251229
["ID","MTS","AMOUNT","RATE_DAILY","PERIOD"]
[399958042,1766943031694,-177.0,0.000166,2]
[399958044,1766943031703,-156.10136125,0.00018157,2]
[399958047,1766943031718,-95.04683125,0.00018157,2]
[399958049,1766943031728,-204.0,0.000186,2]
[399958051,1766943031737,-231.0,0.000206,2]
[399958053,1766943031746,-150.0,0.00021918,2]
[399958055,1766943031755,-300.0,0.00021999,2]
[399958057,1766943031765,-47502.77686157,0.00022,2]
[399958059,1766943031774,-1419.96468768,0.00022339,2]
[399958062,1766943031783,-300.0,0.00022439,10]
[399958064,1766943031792,-300.0,0.00022439,10]
[399958066,1766943031802,-300.0,0.00022439,10]
[399958068,1766943031811,-300.0,0.00022439,10]
[399958070,1766943031821,-300.0,0.00022439,10]
[399958071,1766943031830,-300.0,0.00022439,10]
[399958073,1766943031839,-300.0,0.00022439,10]
[399958074,1766943031849,-300.0,0.00022439,10]
[399958075,1766943031858,-300.0,0.00022439,10]
[399958076,1766943031868,-300.0,0.00022439,10]
[399958077,1766943031877,-300.0,0.00022439,10]
[399958078,1766943031886,-300.0,0.00022439,10]
[399958079,1766943031896,-300.0,0.00022439,10]
[399958080,1766943031905,-300.0,0.00022439,10]
[399958081,1766943031914,-300.0,0.00022439,10]
[399958082,1766943031923,-300.0,0.00022466,2]
[399958083,1766943031932,-258.0,0.000226,2]
[399958084,1766943031940,-600.0,0.00022887,10]
[399958085,1766943031949,-1041.66666667,0.00023186,2]
[399958086,1766943031960,-159.96314885,0.0002324,2]
[399958087,1766943031970,-800.0,0.00023283,2]
[399958088,1766943031981,-500.0,0.00023333,2]
[399958089,1766943031989,-1505.584667,0.00023333,2]
[399958090,1766943031999,-1505.584667,0.00023333,2]
[399958091,1766943032010,-1505.584667,0.00023333,2]
[399958092,1766943032020,-1505.584667,0.00023333,2]
[399958093,1766943032030,-1505.584667,0.00023333,2]
[399958094,1766943032040,-1505.584667,0.00023333,2]
[399958095,1766943032049,-1505.584667,0.00023333,2]
[399958096,1766943032058,-1505.584667,0.00023333,2]
[399958097,1766943032067,-1505.584667,0.00023333,2]
[399958098,1766943032077,-1505.584667,0.00023333,2]
[399958099,1766943032086,-1505.584667,0.00023333,2]
[399958100,1766943032097,-1505.584667,0.00023333,2]
[399958101,1766943032106,-1505.584667,0.00023333,2]
[399958102,1766943032115,-1505.584667,0.00023333,2]
[399958103,1766943032124,-1505.584667,0.00023333,2]
[399958104,1766943032133,-1505.584667,0.00023333,2]
[399958105,1766943032142,-1505.584667,0.00023333,2]
[399958106,1766943032151,-1505.584667,0.00023333,2]
[399958107,1766943032160,-1505.584667,0.00023333,2]
[399958108,1766943032170,-1505.584667,0.00023333,2]
[399958109,1766943032180,-1505.584667,0.00023333,2]
[399958110,1766943032188,-1580.86390036,0.00023333,2]
[399958111,1766943032197,-1580.86390036,0.00023333,2]
[399958112,1766943032206,-1580.86390036,0.00023333,2]
[399958113,1766943032217,-1580.86390036,0.00023333,2]
[399958114,1766943032226,-1580.86390036,0.00023333,2]
[399958115,1766943032235,-1580.86390036,0.00023333,2]
[399958116,1766943032244,-1580.86390036,0.00023333,2]
[399958117,1766943032254,-1580.86390036,0.00023333,2]
[399958118,1766943032262,-232437.3543359,0.00023334,2]
[399958127,1766943037611,-1009.28503817,0.00023334,2]
[399958129,1766943037666,-766553.36062593,0.00023334,2]
[399958130,1766943037675,-800.0,0.0002334,2]
[399958131,1766943037685,-3274.87293959,0.00023358,2]
[399958132,1766943037694,-10507.87900381,0.00023376,2]
[399958133,1766943037704,-800.0,0.00023378,2]
[399958134,1766943037714,-800.0,0.00023381,2]
[399958135,1766943037724,-987.84,0.000234,2]
[399958136,1766943037733,-800.0,0.00023422,2]
[399958137,1766943037743,-180.912,0.00023428,3]
[399958138,1766943037752,-500.0,0.00023437,2]
[399958139,1766943037761,-500.0,0.00023437,2]
[399958140,1766943037770,-171.6842268,0.00023438,2]
[399958141,1766943037780,-256.6788,0.00023438,2]
[399958142,1766943037789,-500.0,0.00023458,2]
[399958143,1766943037798,-164.92,0.000235,2]
[399958144,1766943037807,-472.73,0.000235,14]
[399958145,1766943037817,-8007.25,0.000235,2]
[399958146,1766943037826,-1823.5,0.000235,7]
[399958147,1766943037835,-190.07,0.000235,7]
[399958148,1766943037844,-206.0,0.000235,7]
[399958149,1766943037853,-500.0,0.00023556,2]
[399958150,1766943037863,-800.0,0.00023604,2]
[399958151,1766943037871,-800.0,0.00023625,2]
[399958152,1766943037881,-800.0,0.00023682,2]
[399958153,1766943037890,-4276.89724105,0.000237,14]
[399958154,1766943037899,-800.0,0.00023772,2]
[399958155,1766943037908,-800.0,0.00023807,2]
[399958156,1766943037917,-249.99999901,0.0002387,2]
[399958157,1766943037926,-420.0,0.00023906,2]
[399958158,1766943037936,-1419.96468761,0.00023922,2]
[399958159,1766943037945,-800.0,0.00023949,2]
[399958160,1766943037954,-500.0,0.00023955,2]
[399958161,1766943037964,-49795.67569881,0.00024,60]
[399958162,1766943037975,-1732.89722071,0.00024,2]
[399958163,1766943037986,-464.95458777,0.00024,2]
[399958164,1766943037996,-10787.12716928,0.00024,30]
[399958165,1766943038008,-800.0,0.00024005,2]
[399958166,1766943038020,-800.0,0.0002401,2]
[399958167,1766943038029,-500.0,0.00024109,2]
[399958168,1766943038038,-800.0,0.00024135,2]
[399958169,1766943038047,-511040.38387914,0.00024142,2]
[399958170,1766943038057,-800.0,0.0002427,2]
[399958171,1766943038066,-800.0,0.00024296,2]
[399958172,1766943038075,-500.0,0.00024375,2]
[399958173,1766943038085,-800.0,0.00024472,2]
[399958174,1766943038094,-800.0,0.0002448,2]
[399958175,1766943038115,-800.0,0.00024537,2]
[399958176,1766943038124,-800.0,0.00024562,2]
[399958177,1766943038133,-500.0,0.0002459,2]
[399958178,1766943038143,-285.0,0.000246,2]
[399958179,1766943038152,-800.0,0.00024618,2]
[399958180,1766943038162,-156629.71130412,0.0002465,2]
[399958181,1766943038171,-513.46854756,0.0002465,2]
[399958182,1766943038180,-150.0,0.00024658,2]
[399958183,1766943038190,-800.0,0.00024676,2]
[399958184,1766943038199,-800.0,0.00024753,2]
[399958185,1766943038208,-500.0,0.00024773,2]
[399958186,1766943038218,-500.0,0.00024773,2]
[399958187,1766943038228,-500.0,0.00024773,2]
[399958188,1766943038237,-500.0,0.00024773,2]
[399958189,1766943038246,-500.0,0.00024773,2]
[399958190,1766943038256,-500.0,0.00024773,2]
[399958191,1766943038265,-500.0,0.00024773,2]
[399958192,1766943038274,-500.0,0.00024773,2]
[399958193,1766943038284,-500.0,0.00024773,2]
[399958194,1766943038293,-500.0,0.00024773,2]
[399958195,1766943038302,-500.0,0.00024773,2]
[399958196,1766943038312,-500.0,0.00024773,2]
[399958197,1766943038322,-500.0,0.00024773,2]
[399958198,1766943038331,-383.9531783,0.00024773,2]
[399958199,1766943038340,-16810.89460626,0.00024774,2]
[399958200,1766943038350,-12660.58515386,0.000248,2]
[399958201,1766943038359,-20768.6764116,0.000248,2]
[399958202,1766943038368,-800.0,0.00024896,2]
[399958203,1766943038378,-362522.36516461,0.000249,2]
[399958204,1766943038392,-5981.15511789,0.000249,2]
[399958205,1766943038403,-24188.7891367,0.000249,2]
[399958237,1766943039932,-5559.2082509,0.000249,2]
[399958502,1766943044090,-343.56276208,0.000249,2]
[399958510,1766943045842,-1607.03640909,0.000249,2]
[399958511,1766943045853,-2893.701801,0.000249,2]
[399958512,1766943045899,-10248.59112652,0.000249,2]
[399958514,1766943077942,500.0,0.00030137,120]
[399958515,1766943083522,216.691,0.00030134,120]
[399958516,1766943084084,475.0,0.00030134,120]
[399958517,1766943084379,475.0,0.00030134,120]
[399958518,1766943084847,475.0,0.00030134,120]
[399958519,1766943085159,475.0,0.00030134,120]
[399958520,1766943085466,475.0,0.00030134,120]
[399958521,1766943085765,402.833,0.00030134,120]
[399958522,1766943088402,500.0,0.00030137,120]
[399958523,1766943098631,500.0,0.00030137,120]
[399958524,1766943114670,500.49,0.00030137,120]
[399958528,1766943425673,-260.38958332,0.00013172,2]
[399958529,1766943429383,-200.13631066,0.00013172,2]
[399958530,1766943431605,-369.49030063,0.00013172,2]
[399958531,1766943433523,-166.37790009,0.00013172,2]
[399958532,1766943433546,-133.62209991,0.00013173,2]
[399958533,1766943480427,163.72,9.99e-05,10]
[399958551,1766943843441,1414.0,0.00030137,120]
[399958569,1766944219866,-87.02723389,0.00013173,2]
[399958570,1766944219887,-314.20085019,0.00013173,2]
[399958571,1766944222524,-292.79914981,0.00013173,2]
[399958572,1766944222547,-130.72278172,0.00013198,2]
[399958595,1766944231761,-19.27721828,0.00013198,2]
[399958596,1766944231771,-485.92530972,0.00013273,2]
[399958597,1766944231781,-177.0,0.00015198,2]
[399958598,1766944231790,-204.0,0.00017198,2]
[399958599,1766944231800,-178.0,0.00018986,3]
[399958600,1766944231809,-6000.0,0.00019,2]
[399958601,1766944231818,-231.0,0.00019198,2]
[399958602,1766944231828,-329.1636529,0.00019777,2]
[399958603,1766944231837,-1200.0,0.00020396,2]
[399958605,1766944231846,-2224.4176314,0.00020397,2]
[399958607,1766944231855,-287.11004586,0.00020398,2]
[399958609,1766944231864,-300.0,0.00020495,2]
[399958610,1766944231874,-300.0,0.00020495,2]
[399958611,1766944231883,-500.0,0.00020497,2]
[399958612,1766944231893,-574.71774709,0.00020497,2]
[399958613,1766944231901,-500.0,0.00020497,2]
[399958614,1766944231911,-184.47331872,0.00020497,2]
[399958615,1766944231921,-500.0,0.00020497,2]
[399958616,1766944231931,-500.0,0.00020497,2]
[399958617,1766944232128,-335.0,0.00020497,2]
[399958618,1766944232143,-500.0,0.00020497,2]
[399958619,1766944232152,-596.60610422,0.00020497,2]
[399958620,1766944232162,-500.0,0.00020497,2]
[399958621,1766944232171,-500.0,0.00020497,2]
[399958622,1766944232180,-500.0,0.00020497,2]
[399958623,1766944232189,-500.0,0.00020497,2]
[399958624,1766944232198,-500.0,0.00020497,2]
[399958625,1766944232207,-500.0,0.00020497,2]
[399958626,1766944232216,-500.0,0.00020497,2]
[399958627,1766944232225,-500.0,0.00020497,2]
[399958628,1766944232235,-500.0,0.00020497,2]
[399958629,1766944232244,-500.0,0.00020497,2]
[399958630,1766944232253,-421.74497478,0.00020497,2]
[399958631,1766944232263,-500.0,0.00020497,2]
[399958632,1766944232272,-358.0157376,0.00020497,2]
[399958633,1766944232282,-500.0,0.00020497,2]
[399958634,1766944232292,-500.0,0.00020497,2]
[399958635,1766944232304,-500.0,0.00020497,2]
[399958636,1766944232315,-500.0,0.00020497,2]
[399958637,1766944232335,-620.49638717,0.00020497,2]
[399958638,1766944232346,-500.0,0.00020497,2]
[399958639,1766944232356,-500.0,0.00020497,2]
[399958640,1766944232366,-500.0,0.00020497,2]
[399958641,1766944232376,-500.0,0.00020497,2]
[399958642,1766944232386,-359.0,0.00020497,2]
[399958643,1766944232396,-500.0,0.00020498,2]
[399958644,1766944232406,-34555.56872927,0.00020498,2]
[399958645,1766944232505,-1451.50254519,0.00020498,2]
[399958646,1766944232516,-508.75859215,0.00020498,2]
[399958647,1766944232527,-2600.0,0.00020498,2]
[399958648,1766944232539,-2750.0,0.00020498,2]
[399958649,1766944232550,-476.52,0.00020498,2]
[399958666,1766944237832,-500.0,0.00020496,2]
[399958667,1766944237843,-1247.53892146,0.00020496,2]
[399958668,1766944237852,-286.78259313,0.00020496,2]
[399958669,1766944237862,-459.62076389,0.00020496,2]
[399958670,1766944237883,-787.91815757,0.00020496,2]
[399958671,1766944237893,-1247.53892146,0.00020496,2]
[399958672,1766944237902,-1247.53892146,0.00020496,2]
[399958673,1766944237914,-1247.53892146,0.00020496,2]
[399958674,1766944237924,-320.56232393,0.00020496,2]
[399958675,1766944237934,-1247.53892146,0.00020496,2]
[399958676,1766944237944,-1247.53892146,0.00020496,2]
[399958677,1766944237953,-1247.53892146,0.00020496,2]
[399958678,1766944237963,-1247.53892146,0.00020496,2]
[399958679,1766944237973,-1247.53892146,0.00020496,2]
[399958680,1766944237982,-1247.53892146,0.00020496,2]
[399958681,1766944237992,-1247.53892146,0.00020496,2]
[399958682,1766944238001,-1247.53892146,0.00020496,2]
[399958683,1766944238010,-1247.53892146,0.00020496,2]
[399958684,1766944238019,-1247.53892146,0.00020496,2]
[399958685,1766944238029,-1247.53892146,0.00020496,2]
[399958686,1766944238040,-1247.53892146,0.00020496,2]
[399958687,1766944238049,-1247.53892146,0.00020496,2]
[399958688,1766944238059,-1247.53892146,0.00020496,2]
[399958689,1766944238069,-1247.53892146,0.00020496,2]
[399958690,1766944238079,-1247.53892146,0.00020496,2]
[399958691,1766944238089,-7657.65013339,0.00020498,2]
[399958692,1766944238099,-8998.0,0.000205,2]
[399958693,1766944238109,-7355.3171639,0.00020673,2]
[399958694,1766944238118,-300.0,0.00021084,2]
[399958695,1766944238128,-300.0,0.00021084,2]
[399958696,1766944238137,-300.0,0.00021084,2]
[399958697,1766944238147,-300.0,0.00021084,2]
[399958698,1766944238156,-300.0,0.00021084,2]
[399958699,1766944238166,-300.0,0.00021084,2]
[399958700,1766944238176,-300.0,0.00021084,2]
[399958701,1766944238185,-300.0,0.00021084,2]
[399958702,1766944238194,-300.0,0.00021084,2]
[399958703,1766944238204,-300.0,0.00021084,2]
[399958704,1766944238214,-300.0,0.00021084,2]
[399958705,1766944238223,-300.0,0.00021084,2]
[399958706,1766944238232,-300.0,0.00021084,2]
[399958707,1766944238243,-300.0,0.00021084,2]
[399958708,1766944238253,-300.0,0.00021084,2]
[399958709,1766944238263,-258.0,0.00021198,2]
[399958710,1766944238272,-600.0,0.00021505,10]
[399958711,1766944238281,-1041.66666667,0.00021849,2]
[399958712,1766944238291,-2224.4176314,0.00022255,2]
[399958713,1766944238301,-420.0,0.00022306,2]
[399958714,1766944238310,-1008.0,0.00022306,2]
[399958715,1766944238320,-1755.17528981,0.00022384,2]
[399958716,1766944238330,-438.79382245,0.00022384,2]
[399958717,1766944238340,-500.0,0.00023144,2]
[399958718,1766944238349,-285.0,0.00023198,2]
[399958719,1766944238359,-382.02,0.00023555,10]
[399958720,1766944238369,-720.0,0.00023655,10]
[399958721,1766944238378,-500.0,0.00023677,2]
[399958722,1766944238388,-500.0,0.00023687,2]
[399958723,1766944238398,-500.0,0.00023788,2]
[399958724,1766944238408,-2224.4176314,0.00024112,2]
[399958725,1766944238418,-1641.15,0.000242,7]
[399958726,1766944238428,-500.0,0.00024202,2]
[399958727,1766944238437,-587.0,0.00024276,2]
[399958728,1766944238446,-500.0,0.00024499,2]
[399958729,1766944238456,-500.0,0.00024499,2]
[399958730,1766944238465,-275.24518356,0.00024499,2]
[399958731,1766944238475,-150.0,0.00024499,2]
[399958732,1766944238484,-1045.9408084,0.00024508,2]
[399958733,1766944238493,-617.8552166,0.00024508,2]
[399958734,1766944238503,-36362.2947096,0.00024508,2]
[399958735,1766944238512,-261.4852021,0.00024508,2]
[399958736,1766944238522,-641.98478323,0.00024565,2]
[399958737,1766944238531,-933.9511965,0.00024618,2]
[399958738,1766944238544,-61.4014392,0.00024618,2]
[399958739,1766944238553,-500.0,0.00024636,2]
[399958740,1766944238563,-500.0,0.00024636,2]
[399958741,1766944238572,-150.0,0.00024636,2]
[399958742,1766944238582,-150.0,0.00024658,2]
[399958743,1766944238591,-200.0,0.00024658,2]
[399958744,1766944238600,-500.0,0.00024658,2]
[399958745,1766944238609,-183.56375069,0.00024773,2]
[399958746,1766944238619,-498.79889081,0.00024773,2]
[399958747,1766944238628,-412.18594597,0.00024786,2]
[399958748,1766944238638,-500.0,0.00024795,2]
[399958749,1766944238647,-1973.02425912,0.000248,2]
[399958750,1766944238657,-703.3336975,0.000249,30]
[399958751,1766944238666,-425.46,0.000249,14]
[399958752,1766944238675,-153.0,0.000249,3]
[399958753,1766944238684,-12620.51067942,0.000249,2]
[399958754,1766944238697,-2784.92282678,0.000249,2]
[399958790,1766944240258,-3e-08,0.000249,2]
[399958793,1766944240276,-8989.69916831,0.000249,2]
[399959372,1766944245982,-379.04637905,0.000249,2]
[399959384,1766944246088,-5587.63580771,0.000249,2]
[399959386,1766944246099,-500.0,0.00024932,2]
[399959388,1766944246110,-547.49668588,0.0002496,2]
[399959658,1766944510364,231.67173149,0.00025647,120]
[399959731,1766945438055,-395.8257,0.00013699,2]
[399959732,1766945438064,-150.0,0.00013699,2]
[399959733,1766945438074,-177.0,0.00015699,2]
[399959734,1766945438083,-171.2237619,0.00017699,2]
[399959735,1766945438093,-1358.6361967,0.00019527,2]
[399959736,1766945438102,-246.35443205,0.00020082,3]
[399959737,1766945438112,-1041.66666667,0.0002017,2]
[399959738,1766945438121,-395.8257,0.00020187,2]
[399959739,1766945438130,-206.44619307,0.00020387,2]
[399959740,1766945438140,-500.0,0.00020387,2]
[399959742,1766945438149,-500.0,0.00020387,2]
[399959744,1766945438159,-427.0348771,0.00020387,2]
[399959745,1766945438168,-500.0,0.00020387,2]
[399959746,1766945438178,-500.0,0.00020387,2]
[399959747,1766945438188,-500.0,0.00020387,2]
[399959748,1766945438200,-500.0,0.00020387,2]
[399959749,1766945438209,-500.0,0.00020387,2]
[399959750,1766945438219,-492.84205853,0.00020387,2]
[399959751,1766945438230,-500.0,0.00020387,2]
[399959752,1766945438239,-500.0,0.00020387,2]
[399959753,1766945438248,-460.12213878,0.00020387,2]
[399959754,1766945438258,-264.86151721,0.00020387,2]
[399959755,1766945438267,-500.0,0.00020387,2]
[399959756,1766945438277,-300.0,0.00020387,2]
[399959757,1766945438286,-825.0,0.00020387,2]
[399959758,1766945438295,-3411.78604301,0.00020388,2]
[399959759,1766945438307,-6995.667,0.00020388,2]
[399959760,1766945438317,-4150.73233248,0.00020388,2]
[399959761,1766945438327,-214.0,0.00020388,2]
[399959762,1766945438336,-470.57261869,0.00020498,2]
[399959763,1766945438345,-500.0,0.00020597,2]
[399959764,1766945438355,-1009.37989404,0.00020597,2]
[399959765,1766945438364,-200.74781519,0.00020597,2]
[399959766,1766945438374,-1009.37989404,0.00020597,2]
[399959767,1766945438383,-1009.37989404,0.00020597,2]
[399959768,1766945438392,-1009.37989404,0.00020597,2]
[399959769,1766945438401,-1009.37989404,0.00020597,2]
[399959770,1766945438411,-1009.37989404,0.00020597,2]
[399959771,1766945438420,-194.23414116,0.00020597,2]
[399959772,1766945438429,-1009.37989404,0.00020597,2]
[399959773,1766945438438,-1009.37989404,0.00020597,2]
[399959774,1766945438448,-1009.37989404,0.00020597,2]
[399959775,1766945438458,-1009.37989404,0.00020597,2]
[399959776,1766945438468,-1009.37989404,0.00020597,2]
[399959777,1766945438477,-1009.37989404,0.00020597,2]
[399959778,1766945438487,-1009.37989404,0.00020597,2]
[399959779,1766945438496,-181.71972801,0.00020597,2]
[399959820,1766945440330,-451.88,0.00020597,2]
[399960377,1766945446192,-375.78016603,0.00020597,2]
[399960379,1766945446209,-1009.37989404,0.00020597,2]
[399960381,1766945446219,-821.76104354,0.00020597,2]
[399960384,1766945446231,-187.6188505,0.00020597,2]
[399960385,1766945446240,-1009.37989404,0.00020597,2]
[399960387,1766945446250,-1009.37989404,0.00020597,2]
[399960389,1766945446259,-627.34245421,0.00020599,2]
[399960392,1766945446270,-720.94,0.00020599,2]
[399960662,1766945532701,500.0,0.00030134,120]
[399960663,1766945539722,520.12,0.00030134,120]
[399960664,1766945543918,500.0,0.00030134,120]
[399960665,1766945544266,500.0,0.00030134,120]
[399960666,1766945548774,508.80380065,0.00030134,120]
[399960667,1766945549630,500.0,0.00030134,120]
[399960668,1766945552141,500.0,0.00030134,120]
[399960669,1766945556364,527.6847533,0.00030134,120]
[399960670,1766945561658,521.94154786,0.00030134,120]
[399960671,1766945563475,500.0,0.00030134,120]
[399960672,1766945565285,246.60593481,0.00030134,120]
[399960673,1766945565370,500.0,0.00030134,120]
[399960674,1766945608200,484.71,0.00030134,120]
[399960675,1766945613222,500.0,0.00030134,120]
[399960676,1766945613474,429.58939435,0.00030134,120]
[399960677,1766945618587,500.0,0.00030134,120]
[399960678,1766945620939,500.0,0.00030134,120]
[399960679,1766945631454,582.09392491,0.00030134,120]
[399960680,1766945633149,554.30049037,0.00030134,120]
[399960681,1766945635115,500.0,0.00030134,120]
[399960682,1766945640507,500.0,0.00030134,120]
[399960683,1766945642240,500.0,0.00030134,120]
[399960684,1766945655224,423.26,0.00030134,120]
[399960685,1766945657111,551.57940628,0.00030134,120]
[399960686,1766945670064,528.12563624,0.00030134,120]
[399961081,1766945986503,-82368.56132566,0.00037641,30]
[399961082,1766945986529,-1000.0,0.00037641,60]
[399961083,1766945986554,-282.59971,0.00037641,60]
[399961084,1766945986591,-1456.94279942,0.00037641,120]
[399961085,1766945986616,-253.80588351,0.00037641,120]
[399961086,1766945986642,-107210.20804041,0.00037641,30]
[399961087,1766945986669,-5000.0,0.00037641,60]
[399961088,1766945986694,-5000.0,0.00037641,70]
[399961089,1766945986718,-104956.59479992,0.00037641,30]
[399961090,1766945986742,-50000.0,0.00037641,120]
[399961091,1766945986767,-3000.0,0.00037641,120]
[399961092,1766945986792,-345.0,0.00037641,120]
[399961093,1766945986817,-577.61294175,0.00037641,120]
[399961095,1766945986841,-31386.129999,0.00037641,30]
[399961096,1766945986867,-10034.0,0.00037641,120]
[399961097,1766945986893,-11968.8130474,0.00037641,120]
[399961098,1766945986919,-10143.69828379,0.00037641,60]
[399961099,1766945986943,-13003.0,0.00037641,120]
[399961100,1766945986967,-11439.0,0.00037641,120]
[399961101,1766945986994,-1600.85228372,0.00037641,120]
[399961102,1766945987020,-1000.0,0.00037641,30]
[399961103,1766945987046,-12000.0,0.00037641,120]
[399961105,1766945987071,-14000.0,0.00037641,120]
[399961106,1766945987095,-1194.91,0.00037641,30]
[399961107,1766945987122,-564396.34980011,0.00037641,120]
[399961108,1766945987147,-5000.0,0.00037641,120]
[399961112,1766945987399,-5000.0,0.00037641,120]
[399961113,1766945987427,-5000.0,0.00037641,120]
[399961114,1766945987458,-5000.0,0.00037641,120]
[399961115,1766945987484,-4451.0,0.00037641,120]
[399961116,1766945987508,-1544.29080595,0.00037641,120]
[399961118,1766945987532,-327.72700301,0.00037641,120]
[399961119,1766945987557,-328.56849128,0.00037641,120]
[399961120,1766945987583,-5000.0,0.00037641,30]
[399961121,1766945987607,-3110.01170395,0.00037641,120]
[399961122,1766945987631,-152.70147093,0.00037641,120]
[399961123,1766945987656,-48547.97680646,0.00037641,120]
[399961124,1766945987681,-676.05214542,0.00037641,120]
[399961125,1766945987706,-287.13752026,0.00037641,120]
[399961126,1766945987733,-177231.93369247,0.00037641,120]
[399961127,1766945987759,-240.82074905,0.00037641,120]
[399961128,1766945987784,-252.65696075,0.00037641,120]
[399961129,1766945987810,-225.24976998,0.00037641,120]
[399961130,1766945987835,-330.49026562,0.00037641,120]
[399961131,1766945987862,-169.48910548,0.00037641,120]
[399961132,1766945987887,-165037.11374469,0.00037641,30]
[399961133,1766945987912,-177.97926795,0.00037641,120]
[399961134,1766945987936,-163.18513403,0.00037641,120]
[399961135,1766945987960,-157.20640943,0.00037641,30]
[399961136,1766945987984,-261317.65449056,0.00037641,30]
[399961137,1766945988009,-28915.88039459,0.00037641,61]
[399961138,1766945988035,-1000.0,0.00037641,90]
[399961139,1766945988062,-1000.0,0.00037641,120]
[399961141,1766945988086,-272.73109,0.00037641,60]
[399961142,1766945988111,-1388.27881339,0.00037641,120]
[399961143,1766945988135,-209050.5495075,0.00037641,120]
[399961144,1766945988163,-303.10657543,0.00037641,30]
[399961145,1766945988189,-786.51085967,0.00037641,35]
[399961146,1766945988215,-218.08887907,0.00037641,60]
[399961147,1766945988241,-267.77565718,0.00037641,120]
[399961148,1766945988267,-175.15993295,0.00037641,30]
[399961149,1766945988292,-1860.0,0.00037641,60]
[399961150,1766945988318,-30464.43267628,0.00037641,120]
[399961151,1766945988344,-455.63096216,0.00037641,120]
[399961152,1766945988371,-990494.53019982,0.00037641,30]
[399961241,1766946037015,570.78,0.00030134,120]
[399961243,1766946037257,570.78,0.00030134,120]
[399961244,1766946037491,570.78,0.00030134,120]
[399961245,1766946037717,570.78,0.00030134,120]
[399961246,1766946037948,570.78,0.00030134,120]
[399961247,1766946038251,570.78,0.00030134,120]
[399961248,1766946038482,570.78,0.00030134,120]
[399961249,1766946038716,570.78,0.00030134,120]
[399961250,1766946038953,570.78,0.00030134,120]
[399961251,1766946039182,570.78,0.00030134,120]
[399961252,1766946039424,570.78,0.00030134,120]
[399961253,1766946039677,570.78,0.00030134,120]
[399961254,1766946039915,570.78,0.00030134,120]
[399961255,1766946040155,570.78,0.00030134,120]
[399961257,1766946040389,570.78,0.00030134,120]
[399961258,1766946040615,570.78,0.00030134,120]
[399961259,1766946040852,570.78,0.00030134,120]
[399961260,1766946041085,570.78,0.00030134,120]
[399961261,1766946041315,570.78,0.00030134,120]
[399961262,1766946041556,570.78,0.00030134,120]
[399961263,1766946041779,570.78,0.00030134,120]
[399961265,1766946042133,570.78,0.00030134,120]
[399961266,1766946042256,570.78,0.00030134,120]
[399961267,1766946042490,570.94128416,0.00030134,120]
[399961292,1766946056274,1208.33,0.00030134,120]
[399961294,1766946056388,1208.33,0.00030134,120]
[399961295,1766946056614,1208.33,0.00030134,120]
[399961296,1766946056845,1208.33,0.00030134,120]
[399961298,1766946057078,1208.33,0.00030134,120]
[399961299,1766946057329,1208.33,0.00030134,120]
[399961300,1766946057432,293.62290266,0.00030134,120]
[399961301,1766946057567,1208.33,0.00030134,120]
[399961303,1766946057799,1208.33,0.00030134,120]
[399961305,1766946058032,1208.33,0.00030134,120]
[399961307,1766946058264,1208.33,0.00030134,120]
[399961308,1766946058501,1208.33,0.00030134,120]
[399961309,1766946058750,1208.33,0.00030134,120]
[399961310,1766946059002,1208.33,0.00030134,120]
[399961311,1766946059253,1208.33,0.00030134,120]
[399961313,1766946059523,1208.33,0.00030134,120]